bitfinex/quotes_SOLUSD_20250924
["timestamp","ask_amount","ask_price","bid_price","bid_amount"]
[1758727621456,36.44216157,215.6,215.56,0.69]
[1758727621658,36.44216157,215.6,215.57,0.69]
[1758727622966,36.44216157,215.6,215.57,5.328756]
[1758727623166,36.44216157,215.6,215.57,4.638756]
[1758727623366,36.44216157,215.6,215.57,5.328756]
[1758727623572,133.9,215.66,215.59,2.12210461]
[1758727623746,39.42245294,215.65,215.6,0.69]
[1758727624068,0.14216157,215.63,215.58,0.69]
[1758727624269,0.83216157,215.63,215.58,0.69]
[1758727624455,0.83216157,215.63,215.58,5.32857498]
[1758727624656,36.3,215.62,215.58,5.32857498]
[1758727624970,36.3,215.62,215.58,0.69]
[1758727625152,0.14216157,215.61,215.56,2.81210461]
[1758727625468,0.14216157,215.61,215.52,26.0]
[1758727625469,0.14216157,215.61,215.58,2.12210461]
[1758727625854,0.14216157,215.61,215.58,2.81210461]
[1758727626170,0.14216157,215.61,215.57,2.12210461]
[1758727626470,3.26631361,215.61,215.57,2.12210461]
[1758727626665,3.26631361,215.61,215.57,2.81210461]
[1758727626849,0.14216157,215.61,215.57,7.45096579]
[1758727627353,3.26639123,215.61,215.57,7.45096579]
[1758727627871,0.14216157,215.59,215.54,2.12210461]
[1758727628171,36.3,215.58,215.54,2.81210461]
[1758727628376,36.3,215.58,215.55,5.32929482]
[1758727628871,36.3,215.58,215.56,2.81210461]
[1758727629073,36.44216157,215.59,215.56,2.81210461]
[1758727629377,0.14216157,215.59,215.56,2.81210461]
[1758727629553,36.44216157,215.59,215.56,0.69]
[1758727629871,36.44216157,215.59,215.55,6.76139943]
[1758727630264,36.44216157,215.59,215.56,0.69]
[1758727630444,0.14216157,215.59,215.56,5.32897415]
[1758727630643,36.3,215.59,215.56,5.32897415]
[1758727631051,0.14216157,215.6,215.57,2.81210461]
[1758727631271,39.56744196,215.6,215.58,2.12210461]
[1758727631455,36.44216157,215.6,215.57,2.81210461]
[1758727631857,37.13216157,215.6,215.56,4.63897415]
[1758727632977,0.69,215.59,215.55,2.81210461]
[1758727633155,0.69,215.59,215.55,7.45135817]
[1758727633355,3.81546815,215.59,215.55,7.45135817]
[1758727633563,0.14216157,215.58,215.53,0.69]
[1758727633873,0.14216157,215.58,215.46,23.20600792]
[1758727633874,0.14216157,215.56,215.52,2.12210461]
[1758727634049,0.14216157,215.54,215.5,2.12210461]
[1758727634255,0.14216157,215.54,215.5,2.81210461]
[1758727634256,37.13216157,215.54,215.5,2.81210461]
[1758727634452,36.44216157,215.54,215.5,2.81210461]
[1758727634658,37.13216157,215.54,215.5,2.12210461]
[1758727635078,36.44216157,215.54,215.51,0.69]
[1758727635682,36.44216157,215.54,215.5,6.76246998]
[1758727636059,36.44216157,215.54,215.5,7.45246998]
[1758727636257,37.13216157,215.54,215.5,6.76246998]
[1758727636682,0.69,215.53,215.45,4.64144813]
[1758727636885,5.47220946,215.52,215.46,5.33122939]
[1758727637078,5.47220946,215.52,215.47,2.12210461]
[1758727637272,5.47220946,215.52,215.47,2.81210461]
[1758727637574,0.14216157,215.52,215.48,2.81210461]
[1758727637783,0.14216157,215.52,215.49,0.69]
[1758727638362,0.14216157,215.52,215.48,2.12210461]
[1758727638565,0.14216157,215.52,215.48,2.81210461]
[1758727638877,0.14216157,215.52,215.48,6.76287519]
[1758727639053,0.14216157,215.53,215.51,2.12210461]
[1758727639578,0.14216157,215.53,215.48,16.2427754]
[1758727639579,0.14216157,215.53,215.5,0.69]
[1758727639779,6.90402156,215.53,215.48,6.76287519]
[1758727639984,0.14216157,215.51,215.48,7.45287519]
[1758727640658,0.14216157,215.51,215.49,2.12210461]
[1758727641062,0.14216157,215.51,215.49,6.76252525]
[1758727641257,0.14216157,215.51,215.49,7.44252525]
[1758727642082,0.14216157,215.53,215.49,7.44252525]
[1758727642282,0.14216157,215.53,215.5,2.12210461]
[1758727642986,0.14216157,215.53,215.5,6.76245246]
[1758727643182,0.14216157,215.53,215.5,4.64034785]
[1758727643492,0.14216157,215.53,215.5,7.44245246]
[1758727644192,0.14216157,215.53,215.5,5.32034785]
[1758727644387,0.14216157,215.53,215.51,0.68]
[1758727644903,170.2,215.54,215.52,2.80210461]
[1758727645206,170.2,215.54,215.51,6.76222482]
[1758727645390,170.2,215.54,215.52,0.68]
[1758727645688,170.2,215.54,215.52,2.12210461]
[1758727646083,170.2,215.54,215.51,7.44222482]
[1758727646281,133.9,215.54,215.53,2.12210461]
[1758727646502,17.47379341,215.62,215.53,2.12210461]
[1758727646503,36.3,215.59,215.53,2.80210461]
[1758727646700,36.3,215.59,215.58,2.12210461]
[1758727648316,0.14216157,215.61,215.59,2.12210461]
[1758727648501,5.36012021,215.69,215.6,2.80210461]
[1758727648689,40.94012021,215.69,215.63,2.12210461]
[1758727648884,3.84002596,215.68,215.64,2.12210461]
[1758727649085,0.14216157,215.67,215.64,2.12210461]
[1758727649301,36.3,215.66,215.64,2.12210461]
[1758727649495,36.3,215.66,215.61,5.3180038]
[1758727649690,36.3,215.66,215.63,2.12210461]
[1758727649917,0.14216157,215.64,215.62,2.12210461]
[1758727651120,0.14216157,215.64,215.6,4.63803881]
[1758727651121,0.72,215.63,215.61,2.12210461]
[1758727651311,0.14216157,215.62,215.6,2.12210461]
[1758727651484,0.86216157,215.62,215.58,4.63844506]
[1758727651689,0.86216157,215.62,215.59,2.12210461]
[1758727651690,0.14216157,215.62,215.59,2.12210461]
[1758727651906,0.86216157,215.62,215.59,2.12210461]
[1758727652233,0.86216157,215.62,215.6,2.12210461]
[1758727652513,0.86216157,215.62,215.59,2.12210461]
[1758727652707,0.72,215.61,215.58,2.12210461]
[1758727653020,36.42216157,215.6,215.58,2.12210461]
[1758727653504,36.42216157,215.6,215.54,11.59858435]
[1758727653505,37.14216157,215.6,215.57,2.12210461]
[1758727653804,37.14216157,215.6,215.58,2.12210461]
[1758727653805,36.42216157,215.6,215.58,2.12210461]
[1758727654218,36.42216157,215.6,215.55,5.31908797]
[1758727654219,36.42216157,215.6,215.59,2.12210461]
[1758727655697,36.42216157,215.6,215.58,2.12210461]
[1758727656616,36.42216157,215.6,215.57,2.12210461]
[1758727657608,36.42216157,215.6,215.57,2.80210461]
[1758727658207,36.42216157,215.6,215.57,0.68]
[1758727658412,36.42216157,215.6,215.58,2.12210461]
[1758727660202,0.72,215.62,215.5,13.59559401]
[1758727660203,0.14216157,215.61,215.59,2.12210461]
[1758727660403,0.14216157,215.61,215.58,2.12210461]
[1758727660812,36.42216157,215.61,215.58,2.12210461]
[1758727660996,37.14216157,215.61,215.58,2.12210461]
[1758727662618,37.14216157,215.61,215.58,3.31705336]
[1758727663608,36.42216157,215.61,215.59,3.99705336]
[1758727663809,36.42216157,215.61,215.6,3.31705336]
[1758727664409,41.78028086,215.61,215.57,3.31705336]
[1758727664604,0.14216157,215.59,215.52,5.3197555]
[1758727664924,0.14216157,215.57,215.52,7.95680886]
[1758727665104,0.14216157,215.55,215.52,3.31705336]
[1758727665294,36.42216157,215.55,215.52,3.31705336]
[1758727665618,37.14216157,215.55,215.51,3.31705336]
[1758727666023,0.14216157,215.53,215.51,3.31705336]
[1758727666913,0.14216157,215.53,215.5,3.31705336]
[1758727667216,0.14216157,215.53,215.46,0.68]
[1758727667217,0.14216157,215.51,215.46,0.68]
[1758727667421,0.14216157,215.51,215.47,0.68]
[1758727667725,0.14216157,215.51,215.48,3.99705336]
[1758727668299,0.14216157,215.51,215.49,3.99705336]
[1758727669808,0.14216157,215.51,215.47,0.68]
[1758727670006,0.14216157,215.51,215.49,3.31705336]
[1758727670718,0.14216157,215.49,215.44,0.2]
[1758727671022,0.14216157,215.46,215.44,0.2]
[1758727671218,0.84216157,215.46,215.44,0.2]
[1758727671410,36.42216157,215.45,215.44,0.2]
[1758727671607,37.12216157,215.45,215.44,0.2]
[1758727672313,71.08066306,215.45,215.44,0.2]
[1758727672615,74.19935662,215.45,215.44,0.2]
[1758727673202,87.79495063,215.45,215.44,0.2]
[1758727678119,50.05944468,215.45,215.44,0.2]
[1758727678305,72.94221047,215.45,215.44,0.2]
[1758727678504,70.38066306,215.45,215.44,0.2]
[1758727678815,65.73921493,215.45,215.44,0.2]
[1758727679119,66.43921493,215.45,215.44,0.2]
[1758727679623,66.43921493,215.45,215.44,0.87]
[1758727679624,26.0,215.45,215.44,0.87]
[1758727679806,36.28,215.45,215.44,0.87]
[1758727680408,36.28,215.45,215.44,5.51166357]
[1758727680802,36.42216157,215.45,215.44,5.51166357]
[1758727681827,36.22,215.57,215.44,8.82871693]
[1758727682010,36.28,215.54,215.5,3.31705336]
[1758727682203,36.28,215.54,215.5,0.72]
[1758727682409,0.14216157,215.53,215.5,0.72]
[1758727682716,36.28,215.52,215.51,0.72]
[1758727683115,36.22,215.57,215.51,5.3601559]
[1758727683315,36.22,215.57,215.52,0.72]
[1758727683501,36.28,215.56,215.52,4.03705336]
[1758727683704,3.31705336,215.6,215.53,4.03705336]
[1758727683927,36.28,215.59,215.54,4.03705336]
[1758727684143,36.28,215.58,215.51,16.24054567]
[1758727684339,0.14216157,215.57,215.52,0.72]
[1758727684526,0.14216157,215.57,215.53,0.72]
[1758727684932,0.14216157,215.57,215.53,4.03705336]
[1758727685128,0.14216157,215.57,215.54,5.35951006]
[1758727685637,0.14216157,215.57,215.55,0.72]
[1758727685842,0.14216157,215.57,215.54,4.63951006]
[1758727686052,0.14216157,215.57,215.56,0.72]
[1758727686433,0.14216157,215.57,215.52,8.67681266]
[1758727686653,0.14216157,215.55,215.49,4.03705336]
[1758727686855,0.14216157,215.53,215.5,0.72]
[1758727687047,0.14216157,215.53,215.48,5.36077484]
[1758727687353,3.45921493,215.53,215.49,0.72]
[1758727687528,3.45921493,215.53,215.5,0.72]
[1758727688131,0.14216157,215.53,215.5,0.72]
[1758727688560,4.78188983,215.53,215.5,0.72]
[1758727688858,3.45921493,215.53,215.5,0.72]
[1758727689742,3.45921493,215.53,215.46,0.72]
[1758727689743,0.14216157,215.51,215.46,0.72]
[1758727689942,39.73921493,215.51,215.47,0.72]
[1758727690529,39.73921493,215.51,215.48,0.72]
[1758727690747,39.73921493,215.51,215.46,4.64106568]
[1758727690748,45.09939982,215.51,215.46,4.64106568]
[1758727691134,44.37939982,215.51,215.47,0.72]
[1758727691324,44.37939982,215.51,215.46,4.64106568]
[1758727691532,44.37939982,215.51,215.48,0.72]
[1758727691743,39.73921493,215.51,215.48,0.72]
[1758727692145,44.3793786,215.51,215.48,0.72]
[1758727692552,41.06232524,215.51,215.48,0.72]
[1758727693047,36.42216157,215.51,215.48,0.72]
[1758727694336,36.42216157,215.51,215.46,4.64106568]
[1758727694538,36.42216157,215.51,215.47,0.72]
[1758727694954,41.06235402,215.51,215.45,7.95848156]
[1758727695141,41.78235402,215.51,215.45,8.67848156]
[1758727695346,175.68235402,215.51,215.45,8.67848156]
[1758727696240,175.68235402,215.51,215.45,0.72]
[1758727696241,0.14216157,215.49,215.45,0.72]
[1758727696438,0.14216157,215.49,215.44,0.2]
[1758727696439,0.14216157,215.47,215.44,0.2]
[1758727696829,0.14216157,215.47,215.44,0.92]
[1758727697244,0.14216157,215.47,215.44,0.2]
[1758727697649,0.14216157,215.47,215.44,0.92]
[1758727698239,0.14216157,215.47,215.44,0.2]
[1758727698938,0.14216157,215.47,215.44,0.92]
[1758727699344,26.14216157,215.45,215.44,0.2]
[1758727699535,65.71921493,215.45,215.44,0.2]
[1758727699730,62.40216157,215.45,215.44,0.2]
[1758727702939,36.26,215.45,215.44,0.2]
[1758727703143,8.63701909,215.52,215.44,8.86871693]
[1758727703339,36.26,215.51,215.45,4.02705336]
[1758727703535,62.26,215.51,215.46,0.71]
[1758727703741,36.26,215.51,215.48,3.31705336]
[1758727703935,36.26,215.51,215.49,0.71]
[1758727705661,36.26,215.51,215.5,0.71]
[1758727705857,0.68,215.58,215.5,4.02705336]
[1758727706057,3.11003412,215.6,215.55,3.31705336]
[1758727706357,36.26,215.59,215.56,0.71]
[1758727706534,36.24,215.62,215.56,4.02705336]
[1758727706740,39.36998284,215.61,215.57,3.31705336]
[1758727707044,36.26,215.61,215.58,0.71]
[1758727707242,7.95422103,215.65,215.59,0.71]
[1758727707449,36.26,215.64,215.59,0.71]
[1758727707653,26.0,215.61,215.59,0.71]
[1758727707837,4.63716767,215.65,215.6,0.71]
[1758727708040,36.26,215.64,215.61,0.71]
[1758727708662,36.26,215.64,215.62,4.02705336]
[1758727708865,36.26,215.64,215.61,4.02705336]
[1758727709244,36.26,215.64,215.61,7.95498822]
[1758727709454,0.14216157,215.63,215.62,0.71]
[1758727709659,36.26,215.64,215.62,0.71]
[1758727709861,0.14216157,215.63,215.62,0.71]
[1758727710341,0.14216157,215.63,215.59,4.02705336]
[1758727710541,0.14216157,215.63,215.59,8.66546771]
[1758727710742,0.14216157,215.63,215.6,0.71]
[1758727711164,0.14216157,215.63,215.6,4.02705336]
[1758727711740,0.14216157,215.63,215.61,8.66505716]
[1758727712240,26.0,215.67,215.62,4.02705336]
[1758727712444,3.80375053,215.72,215.61,4.6380038]
[1758727712445,36.26,215.68,215.65,3.31705336]
[1758727712769,36.26,215.68,215.66,0.71]
[1758727713162,36.26,215.68,215.66,3.31705336]
[1758727713472,36.26,215.68,215.66,4.63687191]
[1758727713661,36.26,215.68,215.64,4.02705336]
[1758727713965,0.14216157,215.67,215.64,0.71]
[1758727714372,0.14216157,215.67,215.62,0.71]
[1758727714669,0.14216157,215.67,215.64,3.31705336]
[1758727714857,0.14216157,215.67,215.63,0.71]
[1758727715165,0.14216157,215.67,215.64,3.31705336]
[1758727715468,0.14216157,215.67,215.64,4.02705336]
[1758727715968,0.68,215.66,215.62,4.02705336]
[1758727716161,4.77892381,215.67,215.62,4.02705336]
[1758727716343,5.45892381,215.67,215.62,4.02705336]
[1758727716545,0.14216157,215.67,215.63,4.02705336]
[1758727717677,0.14216157,215.65,215.59,5.34843406]
[1758727717978,0.14216157,215.63,215.59,4.02705336]
[1758727718672,0.14216157,215.63,215.6,0.71]
[1758727723552,4.77975371,215.63,215.6,0.71]
[1758727723756,4.77975371,215.63,215.58,0.71]
[1758727723957,36.24,215.62,215.58,4.02705336]
[1758727724571,36.24,215.62,215.59,0.71]
[1758727725782,36.24,215.62,215.6,0.71]
[1758727726477,36.24,215.62,215.61,0.71]
[1758727727761,36.24,215.62,215.61,5.3480038]
[1758727728068,36.24,215.62,215.61,0.71]
[1758727728265,36.24,215.62,215.6,2.12279916]
[1758727728471,0.14216157,215.63,215.61,0.71]
[1758727728864,0.14216157,215.63,215.61,5.34799123]
[1758727729181,0.82216157,215.63,215.59,2.12279916]
[1758727729366,0.14216157,215.61,215.58,2.83279916]
[1758727730477,0.14216157,215.61,215.53,2.12279916]
[1758727730478,0.14216157,215.59,215.53,2.12279916]
[1758727730677,36.22,215.58,215.54,2.12279916]
[1758727730877,0.14216157,215.57,215.54,2.12279916]
[1758727731074,0.14216157,215.57,215.54,2.80279916]
[1758727731271,0.14216157,215.57,215.45,59.42724065]
[1758727731272,0.80216157,215.57,215.52,2.12279916]
[1758727731590,0.80216157,215.57,215.52,2.80279916]
[1758727731772,0.80216157,215.57,215.52,2.12279916]
[1758727731967,0.80216157,215.57,215.52,2.80279916]
[1758727732388,5.44103721,215.57,215.52,2.12279916]
[1758727732682,0.66,215.56,215.51,2.12279916]
[1758727732887,0.14216157,215.54,215.51,2.80279916]
[1758727734593,0.14216157,215.54,215.51,0.68]
[1758727735886,0.14216157,215.54,215.51,2.80279916]
[1758727736086,5.44169171,215.54,215.5,2.12279916]
[1758727736391,5.44169171,215.54,215.49,7.44337963]
[1758727736687,0.14216157,215.52,215.47,2.80279916]
[1758727736887,36.36216157,215.52,215.48,0.68]
[1758727737080,37.02216157,215.52,215.48,0.68]
[1758727737390,37.02216157,215.52,215.47,2.12279916]
[1758727737592,37.02216157,215.52,215.47,2.80279916]
[1758727737994,37.02216157,215.52,215.47,7.44376569]
[1758727738975,37.02216157,215.52,215.47,6.76376569]
[1758727739184,36.36216157,215.52,215.48,2.80279916]
[1758727739488,36.36216157,215.52,215.49,0.68]
[1758727739688,36.22,215.52,215.49,2.12279916]
[1758727739894,36.22,215.52,215.5,0.71]
[1758727740393,36.22,215.52,215.5,5.35031878]
[1758727740570,36.22,215.52,215.51,2.83279916]
[1758727741186,0.14216157,215.55,215.51,2.83279916]
[1758727741373,0.14216157,215.58,215.54,2.12279916]
[1758727741567,0.69,215.58,215.54,2.12279916]
[1758727741774,36.22,215.59,215.56,2.12279916]
[1758727741983,0.14216157,215.58,215.56,6.76176248]
[1758727742183,0.14216157,215.58,215.56,7.47176248]
[1758727742493,36.22,215.59,215.56,7.47176248]
[1758727742697,36.22,215.59,215.55,2.12279916]
[1758727743001,0.14216157,215.58,215.55,2.83279916]
[1758727743879,0.14216157,215.58,215.55,7.47206812]
[1758727744398,0.14216157,215.58,215.55,6.76206812]
[1758727744600,36.22,215.59,215.56,2.83279916]
[1758727745288,36.22,215.59,215.57,0.71]
[1758727745996,36.22,215.59,215.57,2.83279916]
[1758727746580,36.22,215.59,215.55,0.71]
[1758727746902,36.22,215.59,215.56,0.71]
[1758727747094,36.22,215.59,215.56,2.12279916]
[1758727747293,36.22,215.59,215.56,2.83279916]
[1758727747482,36.22,215.59,215.56,0.71]
[1758727747684,36.22,215.59,215.56,2.83279916]
[1758727749097,36.22,215.59,215.56,7.47179837]
[1758727749603,36.22,215.59,215.57,0.71]
[1758727750800,36.22,215.59,215.58,4.63864922]
[1758727751383,26.69,215.67,215.58,7.47144838]
[1758727751578,39.33659934,215.66,215.62,2.12279916]
[1758727751784,39.33659934,215.66,215.62,2.83279916]
[1758727751785,36.22,215.66,215.62,2.83279916]
[1758727751979,0.14216157,215.65,215.62,2.83279916]
[1758727752391,36.22,215.66,215.62,2.83279916]
[1758727752587,36.91,215.66,215.62,2.83279916]
[1758727752805,0.14216157,215.65,215.62,2.83279916]
[1758727752992,36.22,215.66,215.62,6.76043092]
[1758727753193,36.22,215.66,215.63,2.12279916]
[1758727753400,36.22,215.66,215.63,2.83279916]
[1758727753783,36.22,215.66,215.64,0.71]
[1758727754099,36.36216157,215.66,215.65,0.71]
[1758727754308,134.59,215.7,215.65,2.12279916]
[1758727754477,36.22,215.69,215.66,2.12279916]
[1758727754680,36.22,215.69,215.65,0.71]
[1758727754903,0.14216157,215.68,215.65,0.71]
[1758727755488,0.14216157,215.68,215.66,0.71]
[1758727756388,36.22,215.69,215.66,0.71]
[1758727757011,40.85631155,215.69,215.66,0.71]
[1758727757190,36.22,215.69,215.66,0.71]
[1758727758296,36.22,215.69,215.64,4.63728557]
[1758727758514,0.14216157,215.64,215.56,2.12279916]
[1758727758800,0.14216157,215.61,215.56,2.83279916]
[1758727759004,26.0,215.66,215.6,2.12279916]
[1758727759213,0.14216157,215.65,215.62,2.12279916]
[1758727759589,0.14216157,215.65,215.63,2.12279916]
[1758727759986,0.14216157,215.65,215.62,0.71]
[1758727760709,0.14216157,215.65,215.59,0.67]
[1758727760917,0.14216157,215.65,215.61,2.12279916]
[1758727761120,4.7793058,215.65,215.61,2.12279916]
[1758727761296,4.7793058,215.65,215.61,2.79279916]
[1758727761498,0.14216157,215.65,215.62,2.79279916]
[1758727761813,0.14216157,215.65,215.62,2.12279916]
[1758727762010,0.14216157,215.65,215.62,0.67]
[1758727763094,0.14216157,215.65,215.61,2.12279916]
[1758727763314,0.14216157,215.65,215.62,0.67]
[1758727763998,0.14216157,215.65,215.62,2.79279916]
[1758727766101,0.14216157,215.65,215.62,0.67]
[1758727766294,4.77942963,215.65,215.62,0.67]
[1758727766496,0.68,215.64,215.58,0.67]
[1758727766704,2.80279916,215.64,215.58,2.79279916]
[1758727767020,0.68,215.63,215.58,2.79279916]
[1758727767319,0.68,215.62,215.58,2.79279916]
[1758727767906,5.31779376,215.62,215.58,2.79279916]
[1758727768100,0.68,215.62,215.58,7.43144203]
[1758727768303,4.63743597,215.64,215.59,2.79279916]
[1758727768304,0.14216157,215.63,215.59,2.79279916]
[1758727769815,4.77982506,215.63,215.59,2.79279916]
[1758727770120,5.45982506,215.63,215.58,2.79279916]
[1758727771509,5.45982506,215.63,215.59,0.67]
[1758727771510,0.14216157,215.63,215.59,0.67]
[1758727771708,0.14216157,215.63,215.6,0.67]
[1758727772313,4.77979536,215.63,215.59,2.12279916]
[1758727772519,4.77979536,215.63,215.59,2.79279916]
[1758727772719,4.77979536,215.63,215.59,0.67]
[1758727773017,0.68,215.62,215.58,2.12279916]
[1758727773226,0.68,215.62,215.57,2.12279916]
[1758727773404,36.86,215.62,215.57,2.79279916]
[1758727775130,41.49794275,215.62,215.57,2.79279916]
[1758727775525,36.86,215.62,215.57,7.43164041]
[1758727775708,36.18,215.62,215.58,2.79279916]
[1758727776832,40.81788629,215.62,215.58,2.79279916]
[1758727777216,41.49788629,215.62,215.58,2.79279916]
[1758727778522,41.49788629,215.62,215.58,2.12279916]
[1758727779315,2.94496073,215.61,215.54,0.67]
[1758727779519,2.26496073,215.58,215.51,0.67]
[1758727779725,2.26496073,215.56,215.5,2.12279916]
[1758727780028,0.68,215.55,215.5,2.12279916]
[1758727780234,0.68,215.55,215.5,2.79279916]
[1758727780816,4.63951006,215.54,215.5,2.79279916]
[1758727781129,5.31929625,215.55,215.5,2.79279916]
[1758727781715,0.14216157,215.54,215.5,2.79279916]
[1758727781921,0.68,215.53,215.48,2.79279916]
[1758727782235,0.14216157,215.52,215.48,2.79279916]
[1758727783019,5.46210925,215.52,215.48,2.79279916]
[1758727783220,4.78210925,215.52,215.48,2.79279916]
[1758727784737,4.78210925,215.52,215.48,0.67]
[1758727784938,5.46210925,215.52,215.48,2.79279916]
[1758727785135,5.46210925,215.52,215.48,0.67]
[1758727785640,4.78210925,215.52,215.48,2.79279916]
[1758727786627,4.78210925,215.52,215.48,3.98975232]
[1758727787327,4.78210925,215.52,215.46,4.64104889]
[1758727787534,0.68,215.51,215.46,3.31975232]
[1758727787737,3.46191389,215.49,215.44,0.2]
[1758727787936,3.31975232,215.49,215.44,0.2]
[1758727788152,26.0,215.47,215.44,0.87]
[1758727788648,26.0,215.47,215.44,0.2]
[1758727788826,0.14216157,215.46,215.44,0.2]
[1758727789022,5.46352974,215.46,215.44,0.2]
[1758727789248,0.14216157,215.46,215.44,0.2]
[1758727790325,36.18,215.5,215.45,3.98975232]
[1758727790525,0.14216157,215.49,215.46,3.98975232]
[1758727790724,0.14216157,215.49,215.47,0.68]
[1758727790933,0.14216157,215.49,215.45,3.31975232]
[1758727791119,0.83216157,215.49,215.45,3.31975232]
[1758727791337,0.14216157,215.49,215.46,0.68]
[1758727791732,0.14216157,215.49,215.45,4.64137866]
[1758727791937,0.14216157,215.49,215.45,8.64113098]
[1758727792520,0.14216157,215.49,215.45,3.99975232]
[1758727792941,0.14216157,215.49,215.45,7.96115571]
[1758727793129,0.14216157,215.49,215.46,3.99975232]
[1758727793326,0.14216157,215.49,215.47,3.31975232]
[1758727793626,36.18,215.5,215.47,3.99975232]
[1758727794127,36.18,215.5,215.45,4.64140339]
[1758727794128,0.14216157,215.52,215.48,3.99975232]
[1758727794340,0.69,215.56,215.5,3.31975232]
[1758727794523,36.18,215.55,215.5,3.31975232]
[1758727794738,36.87,215.55,215.5,3.99975232]
[1758727795051,40.81944103,215.55,215.5,0.68]
[1758727795253,0.69,215.54,215.5,0.68]
[1758727795552,0.69,215.54,215.49,3.31975232]
[1758727795729,0.69,215.54,215.49,3.99975232]
[1758727795931,0.14216157,215.54,215.5,0.68]
[1758727796144,0.14216157,215.54,215.51,0.68]
[1758727797044,0.14216157,215.58,215.53,3.31975232]
[1758727797259,37.01216157,215.58,215.53,0.68]
[1758727797429,0.69,215.57,215.53,0.68]
[1758727797749,0.14216157,215.56,215.53,0.68]
[1758727799339,4.78125283,215.56,215.53,0.68]
[1758727800035,8.10100515,215.56,215.51,0.69]
[1758727800230,4.78125283,215.56,215.5,7.96009229]
[1758727800435,0.14216157,215.57,215.52,3.31975232]
[1758727800634,0.14216157,215.57,215.53,0.69]
[1758727800855,26.67,215.59,215.54,0.69]
[1758727801032,26.0,215.59,215.55,4.00975232]
[1758727801357,26.0,215.59,215.56,5.3290796]
[1758727801550,4.13191389,215.58,215.53,0.69]
[1758727801940,0.14216157,215.58,215.54,0.69]
[1758727802142,0.14216157,215.58,215.55,3.31975232]
[1758727802344,0.14216157,215.58,215.55,4.00975232]
[1758727802555,0.14216157,215.58,215.57,3.31975232]
[1758727803358,36.18,215.6,215.57,8.64861672]
[1758727803556,36.18,215.6,215.58,3.31975232]
[1758727804057,0.67,215.64,215.59,4.00975232]
[1758727804361,0.14216157,215.63,215.61,3.31975232]
[1758727804657,36.18,215.64,215.62,4.00975232]
[1758727804837,0.67,215.68,215.63,4.00975232]
[1758727805045,36.85,215.67,215.64,3.31975232]
[1758727805558,0.14216157,215.66,215.64,3.31975232]
[1758727805745,40.81679506,215.67,215.64,3.31975232]
[1758727805928,41.48679506,215.67,215.64,3.31975232]
[1758727806353,0.14216157,215.66,215.64,3.31975232]
[1758727806553,0.67,215.65,215.62,3.31975232]
[1758727806740,0.81216157,215.64,215.61,3.31975232]
[1758727806944,55.72833112,215.67,215.59,0.69]
[1758727806945,0.14216157,215.62,215.59,3.31975232]
[1758727807146,0.14216157,215.6,215.56,4.00975232]
[1758727807562,0.81216157,215.6,215.57,3.31975232]
[1758727807742,0.14216157,215.58,215.55,3.31975232]
[1758727808351,0.14216157,215.58,215.56,3.31975232]
[1758727808552,0.14216157,215.61,215.56,4.00975232]
[1758727808940,0.81216157,215.61,215.57,3.31975232]
[1758727809140,0.14216157,215.59,215.57,3.31975232]
[1758727809438,0.81216157,215.59,215.56,3.31975232]
[1758727809661,0.14216157,215.57,215.55,3.31975232]
[1758727809859,0.14216157,215.57,215.54,3.31975232]
[1758727810559,0.14216157,215.55,215.49,5.33056848]
[1758727810760,0.14216157,215.55,215.51,3.31975232]
[1758727811150,4.78059966,215.59,215.54,3.31975232]
[1758727811462,0.14216157,215.57,215.55,3.31975232]
[1758727811834,36.16,215.58,215.56,4.00975232]
[1758727812060,138.5376021,215.63,215.57,4.00975232]
[1758727812245,7.20394962,215.69,215.62,3.31975232]
[1758727812442,40.14975232,215.68,215.62,3.31975232]
[1758727812640,26.0,215.65,215.62,3.31975232]
[1758727812841,0.14216157,215.63,215.62,3.31975232]
[1758727813061,36.16,215.64,215.62,3.31975232]
[1758727813457,36.16,215.64,215.6,0.69]
[1758727813651,36.16,215.64,215.62,3.31975232]
[1758727813962,0.14216157,215.63,215.62,3.31975232]
[1758727814739,0.14216157,215.63,215.61,4.00975232]